bitfinex/quotes_SOLUSD_20241117
["timestamp","ask_amount","ask_price","bid_price","bid_amount"]
[1731854653843,0.481584,233.24,233.19,6.78476336]
[1731854654462,0.09367462,233.22,233.19,6.78476336]
[1731854654767,0.21916462,233.22,233.19,11.07296336]
[1731854656542,23.902374,233.23,233.19,11.07296336]
[1731854656543,23.776884,233.23,233.19,11.07296336]
[1731854656756,23.776884,233.23,233.19,21.79376336]
[1731854661366,0.12549,233.21,233.17,4.2886]
[1731854661562,0.21916462,233.2,233.17,4.2886]
[1731854662761,0.21916462,233.2,233.16,10.7222]
[1731854663072,0.21916462,233.18,233.12,11.07426336]
[1731854663541,0.21916462,233.18,233.12,21.79826336]
[1731854663743,0.21916462,233.16,233.12,10.724]
[1731854663942,0.09367462,233.14,233.12,10.724]
[1731854664165,0.12549,233.16,233.12,15.0136]
[1731854665270,23.902374,233.2,233.13,6.78476336]
[1731854665459,0.09367462,233.19,233.13,6.78476336]
[1731854666961,0.09367462,233.19,233.12,15.0136]
[1731854666962,0.34465462,233.19,233.12,15.0136]
[1731854668177,0.34465462,233.19,232.81,103.4198201]
[1731854668178,0.1,232.92,232.81,103.4198201]
[1731854668349,0.1,232.92,232.7,52.71571994]
[1731854668350,0.09367462,232.84,232.74,6.78476336]
[1731854668550,0.09367462,232.84,232.68,33.47845344]
[1731854668551,0.1,232.91,232.78,6.78476336]
[1731854668759,0.25098,232.98,232.87,6.78476336]
[1731854668962,0.25098,232.96,232.87,6.78476336]
[1731854669162,0.1,232.93,232.87,6.78476336]
[1731854669447,1.717243,232.9,232.87,6.78476336]
[1731854669652,0.09367462,232.95,232.87,6.78476336]
[1731854669859,0.09367462,232.95,232.88,4.294]
[1731854670059,0.09367462,232.89,232.86,10.7358]
[1731854670268,0.09367462,232.89,232.81,10.62223547]
[1731854670685,1.717001,232.92,232.83,10.62223547]
[1731854670856,0.35098,232.93,232.83,10.62223547]
[1731854671058,0.2,232.91,232.83,10.62223547]
[1731854671361,23.776884,232.89,232.83,10.62223547]
[1731854671563,3.18975284,232.88,232.83,10.62223547]
[1731854671751,23.776884,232.89,232.84,4.2947]
[1731854673567,23.876884,232.89,232.84,4.2947]
[1731854674172,23.776884,232.89,232.84,4.2947]
[1731854675361,23.776884,232.89,232.84,15.0316]
[1731854679182,0.1,232.91,232.84,15.0316]
[1731854679183,0.1,232.95,232.87,10.62223547]
[1731854679363,0.2,232.95,232.87,10.62223547]
[1731854679773,0.09367462,232.96,232.87,10.62223547]
[1731854679983,0.2,232.95,232.87,10.62223547]
[1731854680271,0.09367462,232.96,232.88,15.0291]
[1731854680479,0.34465462,232.96,232.88,15.0291]
[1731854681071,0.1,232.97,232.89,10.62223547]
[1731854681259,0.2,232.97,232.89,10.62223547]
[1731854683177,0.2,232.97,232.9,15.0278]
[1731854683483,0.1,232.97,232.9,15.0278]
[1731854683683,23.776884,232.98,232.9,15.0278]
[1731854684089,0.2,232.96,232.9,15.0278]
[1731854684784,24.127864,232.96,232.9,15.0278]
[1731854684991,0.1,232.95,232.9,15.0278]
[1731854685175,0.25098,232.96,232.9,15.0278]
[1731854685369,0.09367462,232.97,232.9,15.0278]
[1731854685564,23.876884,232.98,232.91,10.62223547]
[1731854686084,0.1,232.97,232.91,10.62223547]
[1731854686477,23.876884,232.98,232.91,10.62223547]
[1731854686789,0.1,232.97,232.91,10.62223547]
[1731854686971,23.776884,232.98,232.93,10.62223547]
[1731854687178,23.876884,233.0,232.93,10.62223547]
[1731854687678,0.1,232.98,232.94,4.2929]
[1731854688493,23.776884,233.01,232.95,10.62223547]
[1731854688788,0.1,233.0,232.95,10.62223547]
[1731854688995,0.09367462,233.01,232.95,10.62223547]
[1731854689581,0.1,233.0,232.96,4.2925]
[1731854689784,0.09367462,233.01,232.96,4.2925]
[1731854690082,4.16624426,233.13,232.96,4.2925]
[1731854690083,0.1,233.05,232.98,10.62223547]
[1731854690273,10.7323,233.07,233.02,10.62223547]
[1731854690474,0.2,233.1,233.02,10.62223547]
[1731854691278,0.09367462,233.09,233.03,4.2912]
[1731854691482,0.1,233.08,233.03,4.2912]
[1731854692095,0.34465462,233.09,233.03,4.2912]
[1731854692401,0.1,233.08,233.03,4.2912]
[1731854692795,0.1,233.08,233.03,15.0194]
[1731854693480,0.2,233.08,233.03,15.0194]
[1731854694176,0.1,233.08,233.03,15.0194]
[1731854694375,0.1,233.08,233.03,21.33184]
[1731854694888,0.2,233.08,233.03,21.33184]
[1731854695279,0.2,233.08,233.03,10.7282]
[1731854695470,23.876884,233.08,233.03,10.7282]
[1731854695875,0.2,233.08,233.03,10.7282]
[1731854696082,0.22549,233.08,233.03,10.7282]
[1731854696290,0.1,233.07,233.03,10.7282]
[1731854697598,0.2,233.07,233.03,10.7282]
[1731854699596,0.12549,233.08,233.03,10.7282]
[1731854699901,0.1,233.07,233.03,10.7282]
[1731854700694,0.1,233.08,233.03,10.7282]
[1731854701275,0.25098,233.09,233.03,10.7282]
[1731854701276,0.12549,233.09,233.03,21.33184]
[1731854701478,0.1,233.12,233.05,10.60364]
[1731854701677,0.1,233.12,233.07,10.60364]
[1731854702093,0.1,233.14,233.07,10.60364]
[1731854702887,0.09367462,233.13,233.07,10.60364]
[1731854703084,0.34465462,233.13,233.08,4.2903]
[1731854703484,0.34465462,233.13,233.08,15.0162]
[1731854704008,0.1,233.12,233.08,15.0162]
[1731854704190,0.2,233.12,233.08,15.0162]
[1731854704499,0.1,233.12,233.08,15.0162]
[1731854706508,0.1,233.12,233.09,10.60364]
[1731854706885,0.1,233.19,233.11,10.60364]
[1731854707183,0.1,233.19,233.14,10.60364]
[1731854707383,0.1,233.2,233.14,10.60364]
[1731854707603,0.2,233.23,233.18,10.60364]
[1731854707789,0.481584,233.24,233.2,10.60364]
[1731854708686,0.481584,233.24,233.21,15.0078]
[1731854709418,0.1,233.22,233.18,14.89204]
[1731854709701,0.1,233.22,233.05,16.20134943]
[1731854709702,0.2,233.14,233.06,25.62114]
[1731854710591,0.1,233.09,233.06,10.7268]
[1731854710816,24.027864,233.1,233.06,15.0175]
[1731854711011,0.1,233.13,233.06,25.62114]
[1731854711207,0.481584,233.24,233.2,159.8]
[1731854711511,0.481584,233.24,233.23,10.60364]
[1731854711695,0.481584,233.24,233.21,10.60364]
[1731854712211,0.1,233.23,233.17,10.60364]
[1731854712392,0.1,233.21,233.15,10.60364]
[1731854712589,0.1,233.21,233.16,15.0111]
[1731854712804,0.1,233.21,233.17,10.60364]
[1731854713190,0.1,233.21,233.16,15.0111]
[1731854713408,0.1,233.19,233.16,15.0111]
[1731854713588,0.1,233.16,233.11,10.60364]
[1731854713789,0.1,233.16,233.09,6.437]
[1731854713790,0.2,233.2,233.13,10.60364]
[1731854713991,0.2,233.2,233.15,10.60364]
[1731854714216,0.2,233.2,233.13,10.60364]
[1731854714396,0.1,233.18,233.13,10.60364]
[1731854714596,0.2,233.18,233.11,25.61794]
[1731854714991,0.1,233.16,233.11,25.61794]
[1731854715194,0.1,233.14,233.11,15.0143]
[1731854717713,0.2,233.12,233.11,10.7245]
[1731854717918,0.2,233.08,233.06,4.2907]
[1731854718404,0.2,233.06,233.05,10.7271]
[1731854719715,0.2,233.04,233.02,4.2914]
[1731854720192,0.1,233.05,233.02,15.02]
[1731854720392,0.1,233.04,233.02,15.02]
[1731854723496,0.1,233.02,232.99,10.60364]
[1731854723702,0.1,233.0,232.97,10.60364]
[1731854723909,0.2,233.02,232.99,10.60364]
[1731854724510,0.1,233.02,232.99,10.60364]
[1731854724912,0.1,233.04,233.01,10.60364]
[1731854725509,0.1,233.04,233.0,15.0214]
[1731854725709,0.1,233.02,233.0,15.0214]
[1731854728807,0.09367462,233.01,233.0,10.7296]
[1731854729012,0.44465462,233.01,233.0,10.7296]
[1731854729322,0.44465462,233.01,232.87,6.6018]
[1731854729625,0.29367462,232.96,232.95,10.7316]
[1731854729835,0.29367462,232.96,232.91,4.2935]
[1731854729836,0.1,232.93,232.91,15.0272]
[1731854731008,0.1,232.93,232.91,10.7337]
[1731854732704,0.1,232.93,232.9,10.60364]
[1731854733823,0.1,232.93,232.91,15.0272]
[1731854734122,0.1,232.92,232.91,15.0272]
[1731854734827,0.44465462,232.92,232.91,15.0272]
[1731854735724,0.44465462,232.92,232.91,10.7337]
[1731854738844,0.1,232.88,232.87,4.2942]
[1731854739307,0.1,232.9,232.87,15.0298]
[1731854739509,0.1,232.88,232.87,15.0298]
[1731854742732,0.1,232.88,232.84,10.60364]
[1731854743034,0.25098,232.91,232.82,15.033]
[1731854743035,0.1,232.83,232.82,15.033]
[1731854743213,0.44465462,232.83,232.82,10.7379]
[1731854743723,0.2,232.81,232.8,4.2954]
[1731854743918,0.2,232.81,232.77,10.7398]
[1731854743919,0.2,232.79,232.78,4.2957]
[1731854744428,0.1,232.79,232.78,4.2957]
[1731854744612,0.2,232.79,232.78,4.2957]
[1731854745117,0.2,232.79,232.77,10.7398]
[1731854745309,0.1,232.76,232.74,4.2966]
[1731854745917,0.1,232.76,232.74,15.0382]
[1731854746121,0.1,232.75,232.74,15.0382]
[1731854747415,0.44465462,232.75,232.74,10.7416]
[1731854748119,0.1,232.73,232.69,10.60364]
[1731854748320,0.1,232.73,232.71,4.2971]
[1731854748527,0.2,232.73,232.71,4.2971]
[1731854749220,0.2,232.73,232.71,14.90074]
[1731854749538,0.2,232.73,232.71,25.64364]
[1731854751543,0.2,232.73,232.71,10.7429]
[1731854751544,0.34465462,232.72,232.71,10.7429]
[1731854751716,0.1,232.73,232.71,15.04]
[1731854752536,0.1,232.73,232.71,25.64364]
[1731854752938,0.1,232.75,232.71,25.64364]
[1731854753139,15.2916,232.84,232.71,25.64364]
[1731854753140,0.2,232.8,232.74,10.60364]
[1731854753317,0.1,232.78,232.76,10.60364]
[1731854754134,0.1,232.78,232.77,15.0362]
[1731854754441,0.29367462,232.78,232.77,10.7402]
[1731854754625,0.54465462,232.78,232.77,15.0362]
[1731854755719,0.54465462,232.78,232.77,10.7402]
[1731854756435,0.1,232.79,232.77,10.7402]
[1731854757828,0.1,232.79,232.78,10.60364]
[1731854758917,0.2,232.8,232.76,10.60364]
[1731854759356,0.1,232.79,232.76,10.60364]
[1731854759732,0.1,232.77,232.76,10.60364]
[1731854760246,0.1,232.77,232.76,14.89984]
[1731854760620,15.2916,232.84,232.76,14.89984]
[1731854760824,0.1,232.88,232.83,10.60364]
[1731854761039,0.1,232.87,232.86,10.60364]
[1731854761228,0.1,232.85,232.82,10.60364]
[1731854761428,0.1,232.84,232.82,10.60364]
[1731854762346,0.1,232.91,232.83,25.7697]
[1731854762538,0.1,232.93,232.87,10.60364]
[1731854763049,0.1,232.91,232.87,10.60364]
[1731854763227,0.2,232.93,232.87,10.60364]
[1731854763643,0.1,232.91,232.87,10.60364]
[1731854763842,0.2,232.93,232.89,10.60364]
[1731854764439,0.2,232.93,232.9,15.0278]
[1731854765345,0.1,232.95,232.91,10.60364]
[1731854765522,0.2,232.95,232.91,10.60364]
[1731854765954,0.2,232.99,232.91,10.60364]
[1731854766132,0.1,233.05,232.97,10.60364]
[1731854766333,16.0294,233.07,232.97,10.60364]
[1731854766334,0.1,233.07,233.03,10.60364]
[1731854766533,0.1,233.07,232.93,15.0259]
[1731854766534,0.1,233.11,233.05,10.60364]
[1731854766831,0.1,233.08,233.07,10.60364]
[1731854767037,0.2,233.08,233.05,10.60364]
[1731854767550,0.1,233.06,233.03,10.60364]
[1731854767749,0.1,233.04,233.01,10.60364]
[1731854767926,0.1,233.04,232.99,10.60364]
[1731854768524,0.1,233.03,233.0,15.0214]
[1731854768939,0.1,233.04,233.01,10.60364]
[1731854769346,0.12549,233.06,233.01,10.60364]
[1731854769552,0.1,233.03,233.01,10.60364]
[1731854770055,0.1,233.06,233.01,10.60364]
[1731854770250,0.1,233.06,233.04,10.60364]
[1731854770631,0.1,233.06,233.05,4.2909]
[1731854770833,0.2,233.06,233.05,4.2909]
[1731854771147,0.1,233.06,233.05,4.2909]
[1731854771652,0.1,233.1,233.05,15.0182]
[1731854771829,0.1,233.12,233.09,10.60364]
[1731854772555,0.1,233.12,233.1,15.015]
[1731854774053,0.2,233.12,233.1,15.015]
[1731854775033,0.1,233.12,233.1,15.015]
[1731854775360,0.2,233.12,233.1,15.015]
[1731854777749,0.1,233.11,233.1,15.015]
[1731854778541,0.1,233.11,233.1,10.725]
[1731854779147,0.1,233.12,233.1,10.725]
[1731854779346,0.19367462,233.11,233.1,10.725]
[1731854779552,0.2,233.09,233.08,4.2903]
[1731854779858,0.2,233.09,233.06,4.2906]
[1731854779859,0.2,233.07,233.06,4.2906]
[1731854780568,0.2,233.07,233.05,10.7271]
[1731854782050,0.1,233.07,233.05,10.7271]
[1731854782250,0.2,233.11,233.05,21.33074]
[1731854782558,0.2,233.09,233.05,21.33074]
[1731854782755,0.2,233.09,233.05,25.62164]
[1731854784547,0.2,233.07,233.05,25.62164]
[1731854784748,0.2,233.09,233.05,25.62164]
[1731854785144,0.1,233.11,233.07,10.60364]
[1731854786349,0.1,233.11,233.08,15.0162]
[1731854787042,0.1,233.1,233.08,15.0162]
[1731854788742,0.1,233.14,233.09,10.60364]
[1731854788944,18.89433307,233.24,233.13,10.60364]
[1731854788945,0.1,233.18,233.13,10.60364]
[1731854789166,0.1,233.22,233.17,10.60364]
[1731854789544,0.1,233.23,233.19,10.60364]
[1731854789764,0.1,233.23,233.21,10.60364]
[1731854790155,0.1,233.22,233.21,10.60364]
[1731854790358,0.1,233.22,233.21,14.89154]
[1731854790545,0.1,233.23,233.21,14.89154]
[1731854791254,0.1,233.22,233.21,14.89154]
[1731854791568,0.1,233.22,233.21,25.61144]
[1731854791874,0.1,233.23,233.21,25.61144]
[1731854792572,0.481584,233.24,233.21,25.61144]
[1731854792766,0.481584,233.24,233.23,10.60364]
[1731854793844,0.2,233.36,233.27,159.318416]
[1731854794049,0.2,233.36,233.31,10.60364]
[1731854794268,0.1,233.34,233.31,10.60364]
[1731854794475,0.1,233.32,233.3,10.60364]
[1731854794966,0.1,233.31,233.3,10.60364]
[1731854795167,0.1,233.32,233.25,15.0053]
[1731854795168,0.2,233.29,233.25,15.0053]
[1731854795474,0.2,233.27,233.25,15.0053]
[1731854796556,0.2,233.27,233.25,25.60894]
[1731854797066,0.1,233.36,233.25,31.99114173]
[1731854797266,15.4161,233.42,233.32,10.60364]
[1731854797452,0.09367462,233.41,233.32,10.60364]
[1731854798352,0.21916462,233.41,233.32,10.60364]
[1731854798553,4.50356462,233.41,233.31,10.7149]
[1731854798872,0.12549,233.38,233.31,10.7149]
[1731854799079,0.09367462,233.37,233.31,10.7149]
[1731854799269,0.09367462,233.37,233.27,4.2868]
[1731854799270,0.21916462,233.33,233.27,4.2868]
[1731854800349,0.21916462,233.31,233.24,10.60364]
[1731854800966,0.21916462,233.29,233.22,10.60364]
[1731854801248,0.12549,233.29,233.22,10.60364]
[1731854801468,19.7003,233.42,233.28,10.60364]
[1731854801656,20.0,233.41,233.28,10.60364]
[1731854802065,0.09367462,233.4,233.22,6.38220173]
[1731854802274,15.4161,233.42,233.32,15.0007]
[1731854802565,15.4161,233.42,233.33,10.60364]
[1731854802969,0.09367462,233.41,233.33,10.60364]
[1731854803273,15.4161,233.42,233.32,15.0007]
[1731854803452,3.85019561,233.48,233.39,10.60364]
[1731854803453,0.481584,233.48,233.39,10.60364]
[1731854804575,0.09367462,233.47,233.4,14.9956]
[1731854804772,0.09367462,233.45,233.4,14.9956]
[1731854805075,0.12549,233.46,233.4,14.9956]
[1731854805672,0.21916462,233.45,233.4,14.9956]
[1731854806271,0.12549,233.42,233.4,10.7112]
[1731854806456,0.21916462,233.43,233.4,10.7112]
[1731854807778,0.21916462,233.41,233.35,27.63018332]
[1731854808457,0.21916462,233.41,233.35,31.91558332]
[1731854809370,0.481584,233.48,233.35,31.91558332]
[1731854809560,0.481584,233.48,233.37,16.91678332]
[1731854809561,24.027864,233.46,233.37,16.91678332]
[1731854809879,0.09367462,233.45,233.37,16.91678332]
[1731854810174,0.09367462,233.45,233.39,16.91678332]
[1731854810378,0.09367462,233.45,233.4,4.2844]
[1731854810553,0.09367462,233.45,233.4,14.9956]
[1731854812078,0.09367462,233.45,233.4,10.7112]
[1731854812565,0.21916462,233.43,233.4,10.7112]
[1731854812875,0.09367462,233.41,233.38,4.2848]
[1731854813262,0.21916462,233.43,233.38,4.2848]
[1731854813576,0.09367462,233.41,233.38,4.2848]
[1731854814081,0.09367462,233.42,233.36,14.9982]
[1731854814955,0.25098,233.44,233.37,16.91678332]
[1731854815459,0.09367462,233.43,233.37,16.91678332]
[1731854815676,0.12549,233.42,233.37,16.91678332]
[1731854816177,0.12549,233.42,233.38,14.9969]
[1731854817186,0.12549,233.42,233.38,10.7121]
[1731854817575,0.12549,233.42,233.36,4.2851]
[1731854817971,0.12549,233.42,233.36,14.9981]
[1731854819364,0.481584,233.48,233.41,16.91678332]
[1731854819568,0.481584,233.48,233.43,16.91678332]
[1731854820382,0.481584,233.48,233.44,14.993]
[1731854821663,23.99604862,233.47,233.44,10.7093]
[1731854822166,23.99604862,233.47,233.42,4.2841]
[1731854822167,0.21916462,233.45,233.42,4.2841]
[1731854822366,0.12549,233.45,233.39,31.91258332]
[1731854822562,0.12549,233.45,233.41,16.91678332]
[1731854822783,23.776884,233.47,233.41,16.91678332]
[1731854822970,23.776884,233.47,233.43,16.91678332]
[1731854823586,23.776884,233.47,233.41,16.91678332]
[1731854823793,23.776884,233.47,233.42,14.9944]
[1731854824779,0.34465462,233.46,233.42,10.7103]
[1731854825764,0.34465462,233.46,233.42,14.9944]
[1731854825987,0.34465462,233.46,233.42,10.7103]
[1731854826368,0.25098,233.46,233.42,10.7103]
[1731854826575,23.776884,233.47,233.42,10.7103]
[1731854827176,0.481584,233.48,233.42,10.7103]
[1731854827380,0.481584,233.48,233.42,21.28294787]
[1731854828197,0.481584,233.48,233.42,25.56704787]
[1731854828489,0.481584,233.48,233.44,10.57264787]
[1731854828666,0.481584,233.48,233.46,10.57264787]
[1731854829402,0.481584,233.48,233.44,10.57264787]
[1731854830092,0.481584,233.48,233.46,10.57264787]
[1731854830305,1.0,233.52,233.51,159.318416]
[1731854830466,1.0,233.52,233.49,10.57264787]
[1731854831595,1.0,233.52,233.5,14.9892]
[1731854834685,23.776884,233.51,233.5,14.9892]
[1731854838109,6.19769,233.5,233.43,14.9937]
[1731854838398,23.776884,233.49,233.43,14.9937]
[1731854839304,23.776884,233.49,233.43,25.56634787]
[1731854840403,0.12549,233.48,233.43,25.56634787]
[1731854841583,0.25098,233.48,233.43,14.9937]
[1731854841805,0.12549,233.48,233.43,14.9937]
[1731854842406,0.25098,233.48,233.43,14.9937]
[1731854843704,0.12549,233.49,233.43,25.56634787]
[1731854844810,1.0,233.52,233.45,10.57264787]
[1731854844983,1.0,233.52,233.47,10.57264787]
[1731854845707,1.0,233.52,233.48,14.9905]
[1731854846009,23.776884,233.51,233.48,14.9905]
[1731854847513,23.776884,233.51,233.48,10.7075]
[1731854849195,0.25098,233.5,233.48,10.7075]
[1731854849618,0.25098,233.5,233.43,14.9937]
[1731854849908,0.12549,233.5,233.44,10.57264787]
[1731854850609,1.0,233.52,233.44,10.57264787]
[1731854851588,0.12549,233.51,233.44,10.57264787]
[1731854851811,0.12549,233.51,233.45,14.9924]
[1731854852008,0.12549,233.5,233.45,14.9924]
[1731854857008,23.776884,233.51,233.46,10.57264787]
[1731854857214,1.0,233.52,233.48,10.57264787]
[1731854858019,1.0,233.52,233.5,10.57264787]
[1731854859424,1.0,233.52,233.51,4.2824]
[1731854861703,1.21916462,233.52,233.41,5.12169196]
[1731854861906,23.776884,233.51,233.46,10.57264787]
[1731854862208,23.776884,233.51,233.48,10.57264787]
[1731854863398,1.0,233.52,233.49,14.9898]
[1731854863598,23.776884,233.51,233.49,14.9898]
[1731854864603,23.776884,233.51,233.49,10.707]
[1731854864800,23.776884,233.51,233.46,10.57264787]
[1731854864801,0.25098,233.5,233.44,10.57264787]
[1731854865011,0.09367462,233.49,233.4,10.57264787]
[1731854865221,0.09367462,233.47,233.38,25.56954787]
[1731854865903,0.09367462,233.45,233.38,14.9969]
[1731854866306,0.09367462,233.43,233.38,10.7121]
[1731854867514,0.09367462,233.43,233.33,15.0001]
[1731854867718,0.09367462,233.41,233.33,15.0001]
[1731854868620,0.09367462,233.39,233.33,15.0001]
[1731854868812,0.09367462,233.39,233.33,10.7144]
[1731854870207,28.312364,233.4,233.33,10.7144]
[1731854870208,24.027864,233.4,233.33,10.7144]
[1731854870413,6.1675,233.49,233.38,10.57264787]
[1731854871522,6.1675,233.49,233.39,14.9962]
[1731854871716,24.027864,233.44,233.39,14.9962]
[1731854872715,6.1675,233.49,233.42,10.57264787]
[1731854873043,6.1675,233.49,233.39,14.9962]
[1731854873044,1.0,233.52,233.44,10.57264787]
[1731854874011,1.0,233.52,233.46,10.57264787]
[1731854874214,1.0,233.52,233.42,10.57264787]
[1731854874721,1.0,233.52,233.43,14.9937]
[1731854875443,0.09367462,233.51,233.43,14.9937]
[1731854875952,24.12153862,233.51,233.43,14.9937]
[1731854878339,28.40393862,233.51,233.43,14.9937]
[1731854878836,28.40393862,233.51,233.43,10.7098]
[1731854879137,24.12153862,233.49,233.43,10.7098]
[1731854879440,24.12153862,233.47,233.36,10.57264787]
[1731854879946,0.34465462,233.47,233.36,10.57264787]
[1731854880243,0.34465462,233.47,233.38,10.57264787]
[1731854880442,0.34465462,233.47,233.4,10.57264787]
[1731854881527,0.34465462,233.47,233.41,4.2843]
[1731854882141,0.34465462,233.47,233.41,14.995]
[1731854882437,24.12153862,233.47,233.41,10.7107]
[1731854883333,24.12153862,233.47,233.36,10.7127]
[1731854883334,24.12153862,233.43,233.36,10.7127]
[1731854883733,0.34465462,233.43,233.37,10.57264787]
[1731854884040,4.62855462,233.43,233.36,10.7127]
[1731854884250,0.34465462,233.41,233.36,10.7127]
[1731854885332,0.34465462,233.41,233.36,14.9979]
[1731854886344,0.09367462,233.39,233.31,21.28764787]
[1731854886519,0.34465462,233.39,233.31,21.28764787]
[1731854887541,0.34465462,233.39,233.33,10.57264787]
[1731854887841,0.34465462,233.39,233.31,25.57374787]
[1731854888033,0.34465462,233.39,233.31,15.0011]
[1731854888239,20.34465462,233.39,233.31,15.0011]
[1731854888434,0.34465462,233.37,233.31,15.0011]
[1731854888635,0.34465462,233.37,233.31,10.715]
[1731854888857,20.34465462,233.37,233.27,14.85934787]
[1731854889138,0.34465462,233.33,233.27,14.85934787]
[1731854889927,0.34465462,233.33,233.27,4.2867]
[1731854890339,0.34465462,233.31,233.23,10.57264787]
[1731854890530,0.34465462,233.31,233.23,14.86014787]
[1731854891136,0.34465462,233.31,233.25,10.57264787]
[1731854891547,0.34465462,233.31,233.25,14.85974787]
[1731854891840,24.12153862,233.31,233.25,14.85974787]
[1731854892346,24.12153862,233.31,233.13,5.46136839]
[1731854892347,6.1332,233.28,233.08,33.05931251]
[1731854892539,24.12153862,233.27,233.15,10.57264787]
[1731854892749,24.12153862,233.27,233.13,10.57264787]
[1731854892923,24.12153862,233.21,233.11,10.57264787]
[1731854893346,24.12153862,233.21,233.13,10.57264787]
[1731854893645,24.12153862,233.21,233.14,15.0123]
[1731854894342,24.12153862,233.21,233.14,10.7231]
[1731854894520,24.12153862,233.19,233.14,10.7231]
[1731854895449,0.34465462,233.19,233.12,4.2895]
[1731854896836,0.34465462,233.17,233.1,4.2899]
[1731854897538,15.3771,233.22,233.15,10.57264787]
[1731854897742,6.2332,233.28,233.1,36.4649]
[1731854897743,22.42,233.28,233.21,10.57264787]
[1731854897944,22.42,233.28,233.23,10.57264787]
[1731854898470,6.26677462,233.34,233.25,10.57264787]
[1731854898648,6.26677462,233.34,233.26,4.287]
[1731854899360,0.09367462,233.32,233.26,4.287]
[1731854899653,0.21916462,233.3,233.26,4.287]
[1731854899840,0.21916462,233.3,233.25,21.29054787]
[1731854899841,0.21916462,233.28,233.25,10.7179]
[1731854900153,0.12549,233.27,233.25,10.7179]
[1731854902547,0.25098,233.27,233.25,10.7179]
[1731854904454,0.25098,233.27,233.2,10.7201]
[1731854904455,0.09367462,233.24,233.2,10.7201]
[1731854904656,0.21916462,233.2,233.11,4.2898]
[1731854904858,23.902374,233.19,233.15,10.7224]
[1731854905044,0.12549,233.18,233.16,10.57264787]
[1731854905246,0.12549,233.16,233.15,10.7224]
[1731854906352,23.99604862,233.17,233.15,10.7224]
[1731854906353,23.776884,233.17,233.15,15.0114]
[1731854907759,23.776884,233.17,233.16,10.57264787]
[1731854908869,23.776884,233.17,233.16,14.86154787]
[1731854909247,6.5656,233.27,233.16,25.58374787]
[1731854909446,0.09367462,233.26,233.2,10.57264787]
[1731854909657,6.5656,233.27,233.2,10.57264787]
[1731854910060,0.09367462,233.26,233.2,10.57264787]
[1731854910360,44.12153862,233.26,233.16,25.58374787]
[1731854911357,44.12153862,233.26,233.19,4.2883]
[1731854912453,48.40863862,233.26,233.19,4.2883]
[1731854912851,48.40863862,233.26,233.16,21.29484787]
[1731854913056,48.50863862,233.26,233.16,10.7222]
[1731854913570,48.40863862,233.26,233.16,10.7222]
[1731854913740,48.40863862,233.26,233.16,21.29484787]
[1731854913946,24.12153862,233.26,233.18,10.57264787]
[1731854915065,24.12153862,233.26,233.19,4.2883]
[1731854915771,28.40863862,233.26,233.19,4.2883]
[1731854917661,28.40863862,233.26,233.17,15.0104]
[1731854918654,0.09367462,233.22,233.17,10.7217]
[1731854918956,0.21916462,233.18,233.17,10.7217]
[1731854919374,0.34465462,233.18,233.17,10.7217]
[1731854919759,0.12549,233.17,233.14,10.57264787]
[1731854920170,0.12549,233.2,233.16,10.57264787]
[1731854921357,0.12549,233.18,233.12,10.57264787]
[1731854922356,0.12549,233.18,233.14,10.57264787]
[1731854923478,0.12549,233.18,233.15,15.0117]
[1731854924557,0.12549,233.18,233.12,10.57264787]
[1731854925164,0.12549,233.18,233.1,10.57264787]
[1731854925758,0.09367462,233.17,233.1,10.57264787]